[Event "34rd NATO Championship 2024"]
[Site "Rhodes"]
[Date "2024.10.22"]
[Round "3.25"]
[White "Tommasini, Enzo"]
[Black "Skaburskis, Martynas"]
[Result "1-0"]
[ECO "E06"]
[WhiteElo "2026"]
[BlackElo "1893"]
[Annotator "RC"]
[PlyCount "103"]
[EventDate "2024.09.18"]
[EventType "swiss"]
[EventCountry "GRE"]
[SourceTitle "playchess.com"]
[Source "ChessBase"]
[SourceQuality "1"]
[TimeControl "5400+30"]

1. Nf3 {[%emt 0:00:38]} d5 {[%emt 0:00:17]} 2. g3 {[%emt 0:00:55]} Nf6 {[%emt 0:00:44]} 3. Bg2 {[%emt 0:00:13]} e6 {[%emt 0:01:36]} 4. O-O {[%emt 0:00:28]} Be7 {[%emt 0:00:45]} 5. d4 {[%emt 0:00:37]} O-O {[%emt 0:01:23]} 6. c4 {[%emt 0:00:34]} c6 {[%emt 0:02:26]} 7. Nc3 {[%emt 0:00:17]} Re8 {[%emt 0:03:08]} 8. Nd2 {[%emt 0:01:03]} Nbd7 {[%emt 0:02:56]} 9. e4 {[%emt 0:00:14]} dxe4 {[%emt 0:00:54]} 10. Ndxe4 {[%emt 0:00:11]} Nxe4 {[%emt 0:00:23]} 11. Nxe4 {[%emt 0:00:24]} Nf6 {[%emt 0:00:39]} 12. Be3 {[%emt 0:02:33]} Qc7 {[%emt 0:02:57]} 13. Qc2 {[%emt 0:01:25]} h6 {[%emt 0:01:50]} 14. Bf4 {[%emt 0:00:57]} Qa5 {[%emt 0:05:04]} 15. Nd6 {[%emt 0:03:52]} Rd8 {[%emt 0:09:29]} 16. c5 {[%emt 0:00:13]} Bxd6 {[%emt 0:14:34]} 17. Bxd6 {[%emt 0:03:57]} Ne8 {[%emt 0:00:52]} 18. Be5 {[%emt 0:01:01]} f6 {[%emt 0:00:49]} 19. Bf4 {[%emt 0:00:12]} Rxd4 {[%emt 0:01:10]} 20. Qg6 {[%emt 0:00:31]} Kf8 {[%emt 0:04:21]} 21. Be3 {[%emt 0:02:34]} Rd8 {[%emt 0:03:19]} 22. Bf3 {[%emt 0:03:04]} Qc7 {[%emt 0:08:26]} 23. Rfd1 {[%emt 0:01:54]} Rxd1+ {[%emt 0:04:33]} 24. Rxd1 {[%emt 0:00:02]} e5 {[%emt 0:00:55]} 25. Bh5 {[%emt 0:07:14]} Be6 {[%emt 0:02:16]} 26. Qh7 {[%emt 0:00:45]} Rd8 {[%emt 0:04:37]} 27. Re1 {[%emt 0:04:42]} Bf7 {[%emt 0:03:17]} 28. Qh8+ {[%emt 0:00:54]} Ke7 {[%emt 0:00:57]} 29. Bxf7 {[%emt 0:01:38]} Kxf7 {[%emt 0:00:17]} 30. Qh7 {[%emt 0:00:24]} Ke6 {[%emt 0:02:12]} 31. f4 {[%emt 0:00:30]} Rd5 {[%emt 0:08:48]} 32. f5+ {[%emt 0:03:46]} Kd7 {[%emt 0:01:51]} 33. Bxh6 {[%emt 0:01:33]} Rxc5 {[%emt 0:01:33]} 34. Be3 {[%emt 0:00:55]} Rd5 {[%emt 0:00:39]} 35. b4 {[%emt 0:02:05]} a5 {[%emt 0:01:54]} 36. a3 {[%emt 0:00:51]} Kc8 {[%emt 0:00:37]} 37. Qg8 {[%emt 0:00:48]} Qd7 {[%emt 0:00:57]} 38. Kg2 {[%emt 0:01:38]} axb4 {[%emt 0:01:23]} 39. axb4 {[%emt 0:00:15]} Rd3 {[%emt 0:00:23]} 40. Qf8 {[%emt 0:04:00]} Kc7 {[%emt 0:00:49]} 41. g4 {[%emt 0:01:12]} Nd6 {[%emt 0:00:55]} 42. Qa8 {[%emt 0:05:00]} Nc4 {[%emt 0:00:56]} 43. Bf2 {[%emt 0:00:58]} Qd5+ {[%emt 0:00:55]} 44. Kg1 {[%emt 0:00:17]} Nd2 {[%emt 0:01:02]} 45. Re3 {[%emt 0:01:18]} Nf3+ {[%emt 0:00:57]} 46. Kf1 {[%emt 0:00:37]} Nxh2+ {[%emt 0:00:48]} 47. Kg1 {[%emt 0:00:42]} Rxe3 {[%emt 0:01:03]} 48. Bxe3 {[%emt 0:00:26]} Nxg4 {[%emt 0:00:33]} 49. Bc5 {[%emt 0:00:30]} Qd1+ {[%emt 0:00:43]} 50. Kg2 {[%emt 0:00:20]} Qe2+ {[%emt 0:00:23]} 51. Kg3 {[%emt 0:00:07]} Nh6 {[%emt 0:00:38]} 52. Bb6+ {[%emt 0:00:06]} 1-0

[Event "34rd NATO Championship 2024"]
[Site "Rhodes"]
[Date "2024.10.22"]
[Round "3.26"]
[White "Simard, Francois"]
[Black "Loving, Jason"]
[Result "0-1"]
[ECO "E61"]
[WhiteElo "1868"]
[BlackElo "2021"]
[Annotator "RC"]
[PlyCount "110"]
[EventDate "2024.09.18"]
[EventType "swiss"]
[EventCountry "GRE"]
[SourceTitle "playchess.com"]
[Source "ChessBase"]
[SourceQuality "1"]
[TimeControl "5400+30"]

1. d4 {[%emt 0:00:12]} Nf6 {[%emt 0:00:04]} 2. c4 {[%emt 0:00:06]} g6 {[%emt 0:00:03]} 3. Nc3 {[%emt 0:00:46]} Bg7 {[%emt 0:00:06]} 4. Bg5 {[%emt 0:01:04]} d6 {[%emt 0:00:33]} 5. Qd2 {[%emt 0:01:55]} h6 {[%emt 0:00:06]} 6. Bf4 {[%emt 0:00:05]} Nc6 {[%emt 0:00:22]} 7. Nf3 {[%emt 0:04:27]} Bf5 {[%emt 0:02:16]} 8. d5 {[%emt 0:05:40]} e5 {[%emt 0:02:42]} 9. Bg3 {[%emt 0:11:22]} Nb8 {[%emt 0:02:33]} 10. e3 {[%emt 0:04:14]} Na6 {[%emt 0:00:25]} 11. Be2 {[%emt 0:01:29]} Nc5 {[%emt 0:00:28]} 12. O-O {[%emt 0:04:50]} a5 {[%emt 0:00:48]} 13. Qd1 {[%emt 0:05:41]} Nfe4 {[%emt 0:01:45]} 14. Nxe4 {[%emt 0:00:39]} Nxe4 {[%emt 0:00:07]} 15. Nd2 {[%emt 0:00:55]} Nxg3 {[%emt 0:00:56]} 16. hxg3 {[%emt 0:00:57]} Bd7 {[%emt 0:02:38]} 17. e4 {[%emt 0:07:21]} O-O {[%emt 0:02:08]} 18. g4 {[%emt 0:02:33]} Qg5 {[%emt 0:02:29]} 19. g3 {[%emt 0:06:21]} Rae8 {[%emt 0:02:49]} 20. Kg2 {[%emt 0:09:01]} f5 {[%emt 0:05:12]} 21. gxf5 {[%emt 0:00:43]} gxf5 {[%emt 0:00:06]} 22. f3 {[%emt 0:03:38]} f4 {[%emt 0:08:20]} 23. g4 {[%emt 0:05:21]} h5 {[%emt 0:01:28]} 24. Rh1 {[%emt 0:02:29]} hxg4 {[%emt 0:00:39]} 25. fxg4 {[%emt 0:00:05]} Kf7 {[%emt 0:01:43]} 26. Rh5 {[%emt 0:01:53]} Qg6 {[%emt 0:00:32]} 27. g5 {[%emt 0:00:22]} Ke7 {[%emt 0:01:31]} 28. Bg4 {[%emt 0:03:32]} f3+ {[%emt 0:01:55]} 29. Bxf3 {[%emt 0:00:19]} Rf4 {[%emt 0:00:40]} 30. Qe2 {[%emt 0:05:26]} Ref8 {[%emt 0:02:54]} 31. Rah1 {[%emt 0:00:30]} Kd8 {[%emt 0:03:06]} 32. Kg3 {[%emt 0:01:34]} Bf6 {[%emt 0:01:10]} 33. Kf2 {[%emt 0:02:35]} Bxg5 {[%emt 0:03:01]} 34. Rh8 {[%emt 0:01:45]} Qg7 {[%emt 0:01:58]} 35. Rxf8+ {[%emt 0:00:38]} Rxf8 {[%emt 0:00:07]} 36. Ke1 {[%emt 0:00:20]} Rh8 {[%emt 0:02:25]} 37. Rxh8+ {[%emt 0:00:40]} Qxh8 {[%emt 0:00:03]} 38. Kd1 {[%emt 0:00:50]} Qh4 {[%emt 0:00:40]} 39. Kc2 {[%emt 0:00:34]} Qf4 {[%emt 0:00:35]} 40. Kd1 {[%emt 0:00:31]} b6 {[%emt 0:02:01]} 41. b3 {[%emt 0:00:35]} a4 {[%emt 0:00:48]} 42. Kc2 {[%emt 0:01:47]} Kc8 {[%emt 0:00:38]} 43. Kd3 {[%emt 0:03:17]} Kb7 {[%emt 0:00:39]} 44. Nf1 {[%emt 0:00:24]} Qc1 {[%emt 0:01:07]} 45. Qd1 {[%emt 0:00:40]} Qb2 {[%emt 0:00:51]} 46. Qc2 {[%emt 0:01:06]} Qd4+ {[%emt 0:00:31]} 47. Ke2 {[%emt 0:00:09]} Bh3 {[%emt 0:01:01]} 48. Nd2 {[%emt 0:01:19]} Qe3+ {[%emt 0:02:28]} 49. Kd1 {[%emt 0:00:11]} Qf2 {[%emt 0:00:29]} 50. Bh5 {[%emt 0:01:08]} Qg1+ {[%emt 0:02:26]} 51. Ke2 {[%emt 0:00:06]} Bd7 {[%emt 0:01:15]} 52. Bf3 {[%emt 0:00:44]} Qe3+ {[%emt 0:02:45]} 53. Kd1 {[%emt 0:00:19]} Qf2 {[%emt 0:00:15]} 54. Be2 {[%emt 0:00:53]} Qg1+ {[%emt 0:02:19]} 55. Bf1 {[%emt 0:00:20]} Bxd2 {[%emt 0:00:20]} 0-1

[Event "34rd NATO Championship 2024"]
[Site "Rhodes"]
[Date "2024.10.22"]
[Round "3.27"]
[White "Duren, Andrew"]
[Black "Ivbulis, Martins"]
[Result "1/2-1/2"]
[ECO "D02"]
[WhiteElo "2015"]
[BlackElo "1891"]
[Annotator "RC"]
[PlyCount "72"]
[EventDate "2024.09.18"]
[EventType "swiss"]
[EventCountry "GRE"]
[SourceTitle "playchess.com"]
[Source "ChessBase"]
[SourceQuality "1"]
[TimeControl "5400+30"]

1. d4 {[%emt 0:01:53]} d5 {[%emt 0:00:15]} 2. Bf4 {[%emt 0:00:06]} e6 {[%emt 0:00:08]} 3. e3 {[%emt 0:00:07]} Bd6 {[%emt 0:00:10]} 4. Bg3 {[%emt 0:00:06]} Nf6 {[%emt 0:00:08]} 5. Nd2 {[%emt 0:00:22]} O-O {[%emt 0:01:03]} 6. Bd3 {[%emt 0:00:20]} b6 {[%emt 0:00:11]} 7. Ngf3 {[%emt 0:00:54]} Ba6 {[%emt 0:01:48]} 8. Bxa6 {[%emt 0:00:46]} Nxa6 {[%emt 0:00:11]} 9. c3 {[%emt 0:01:00]} Nb8 {[%emt 0:00:38]} 10. Ne5 {[%emt 0:02:04]} c5 {[%emt 0:02:20]} 11. O-O {[%emt 0:00:55]} Qc7 {[%emt 0:00:29]} 12. f4 {[%emt 0:04:22]} Nc6 {[%emt 0:01:33]} 13. Qf3 {[%emt 0:01:10]} Ne7 {[%emt 0:00:46]} 14. Bf2 {[%emt 0:01:09]} Rad8 {[%emt 0:02:17]} 15. a4 {[%emt 0:02:21]} Ne8 {[%emt 0:02:49]} 16. Qh3 {[%emt 0:00:50]} Qc8 {[%emt 0:08:30]} 17. Kh1 {[%emt 0:05:11]} f6 {[%emt 0:03:30]} 18. Nef3 {[%emt 0:02:04]} Nc6 {[%emt 0:01:43]} 19. g4 {[%emt 0:04:18]} e5 {[%emt 0:03:48]} 20. dxe5 {[%emt 0:01:04]} fxe5 {[%emt 0:00:10]} 21. f5 {[%emt 0:01:21]} Be7 {[%emt 0:23:51]} 22. Bh4 {[%emt 0:09:19]} Bxh4 {[%emt 0:00:39]} 23. Qxh4 {[%emt 0:00:31]} Rd6 {[%emt 0:01:11]} 24. Qg3 {[%emt 0:01:58]} h5 {[%emt 0:05:38]} 25. Nxe5 {[%emt 0:14:43]} Nxe5 {[%emt 0:00:25]} 26. Qxe5 {[%emt 0:00:06]} hxg4 {[%emt 0:00:08]} 27. Rf4 {[%emt 0:01:42]} Qc6 {[%emt 0:03:45]} 28. Rxg4 {[%emt 0:08:17]} Nf6 {[%emt 0:12:22]} 29. Rg2 {[%emt 0:01:34]} Re8 {[%emt 0:09:50]} 30. Qf4 {[%emt 0:09:57]} Nh5 {[%emt 0:00:53]} 31. Qf3 {[%emt 0:04:09]} Rh6 {[%emt 0:01:18]} 32. Rag1 {[%emt 0:04:11]} Re5 {[%emt 0:00:51]} 33. Rg5 {[%emt 0:03:35]} Qe8 {[%emt 0:00:47]} 34. Nf1 {[%emt 0:06:03]} Kh8 {[%emt 0:01:52]} 35. R1g4 {[%emt 0:02:15]} Nf6 {[%emt 0:03:14]} 36. Rg2 {[%emt 0:00:56]} Nh5 {[%emt 0:00:45]} 1/2-1/2

[Event "34rd NATO Championship 2024"]
[Site "Rhodes"]
[Date "2024.10.22"]
[Round "3.28"]
[White "Risk, Gregory"]
[Black "Kedzierski, Slawomir"]
[Result "0-1"]
[ECO "E06"]
[WhiteElo "1862"]
[BlackElo "2013"]
[Annotator "RC"]
[PlyCount "76"]
[EventDate "2024.09.18"]
[EventType "swiss"]
[EventCountry "GRE"]
[SourceTitle "playchess.com"]
[Source "ChessBase"]
[SourceQuality "1"]
[TimeControl "5400+30"]

1. Nf3 {[%emt 0:00:09]} Nf6 {[%emt 0:00:30]} 2. c4 {[%emt 0:00:14]} e6 {[%emt 0:00:12]} 3. g3 {[%emt 0:01:59]} b6 {[%emt 0:00:48]} 4. Bg2 {[%emt 0:00:06]} Bb7 {[%emt 0:00:06]} 5. O-O {[%emt 0:00:07]} Be7 {[%emt 0:00:41]} 6. d4 {[%emt 0:01:00]} O-O {[%emt 0:00:14]} 7. Nc3 {[%emt 0:01:06]} d5 {[%emt 0:00:11]} 8. Ne5 {[%emt 0:01:59]} c6 {[%emt 0:00:34]} 9. b3 {[%emt 0:03:18]} Nfd7 {[%emt 0:00:57]} 10. Nxd7 {[%emt 0:16:00]} Nxd7 {[%emt 0:02:00]} 11. e4 {[%emt 0:01:38]} dxe4 {[%emt 0:01:39]} 12. Nxe4 {[%emt 0:01:43]} Nf6 {[%emt 0:01:22]} 13. Be3 {[%emt 0:22:09]} Qd7 {[%emt 0:04:54]} 14. Qe2 {[%emt 0:04:29]} Rfd8 {[%emt 0:05:27]} 15. Rad1 {[%emt 0:00:11]} g6 {[%emt 0:08:18]} 16. Nc3 {[%emt 0:12:22]} Rac8 {[%emt 0:07:02]} 17. Bg5 {[%emt 0:00:53]} Kg7 {[%emt 0:03:12]} 18. Ne4 {[%emt 0:05:55]} Nxe4 {[%emt 0:02:34]} 19. Bxe7 {[%emt 0:00:10]} Qxe7 {[%emt 0:00:56]} 20. Qxe4 {[%emt 0:00:36]} Rd7 {[%emt 0:01:17]} 21. Qe2 {[%emt 0:08:15]} Rcd8 {[%emt 0:01:39]} 22. Rfe1 {[%emt 0:00:16]} Qf6 {[%emt 0:01:15]} 23. Bf3 {[%emt 0:06:50]} Rxd4 {[%emt 0:01:49]} 24. Rxd4 {[%emt 0:00:17]} Qxd4 {[%emt 0:01:19]} 25. Kg2 {[%emt 0:00:56]} Rd7 {[%emt 0:03:14]} 26. Be4 {[%emt 0:00:35]} Qc3 {[%emt 0:01:15]} 27. Rd1 {[%emt 0:00:54]} Rd4 {[%emt 0:03:23]} 28. Rxd4 {[%emt 0:00:46]} Qxd4 {[%emt 0:00:16]} 29. Qf3 {[%emt 0:00:03]} Qd6 {[%emt 0:04:46]} 30. Qc3+ {[%emt 0:00:57]} e5 {[%emt 0:01:32]} 31. a3 {[%emt 0:02:00]} f5 {[%emt 0:06:14]} 32. Bf3 {[%emt 0:00:29]} Kg8 {[%emt 0:01:26]} 33. c5 {[%emt 0:01:54]} Qxc5 {[%emt 0:01:22]} 34. Qd2 {[%emt 0:01:46]} Qe7 {[%emt 0:10:42]} 35. Qc3 {[%emt 0:00:06]} c5 {[%emt 0:03:39]} 36. Qc4+ {[%emt 0:00:08]} Kg7 {[%emt 0:00:16]} 37. Bd5 {[%emt 0:00:26]} b5 {[%emt 0:02:58]} 38. Qd3 {[%emt 0:00:20]} Qd6 {[%emt 0:00:32]} 0-1

[Event "34rd NATO Championship 2024"]
[Site "Rhodes"]
[Date "2024.10.22"]
[Round "3.29"]
[White "Van Drie, Rik"]
[Black "Bublys, Vaidotas"]
[Result "1-0"]
[ECO "D37"]
[WhiteElo "2013"]
[BlackElo "1872"]
[Annotator "RC"]
[PlyCount "57"]
[EventDate "2024.09.18"]
[EventType "swiss"]
[EventCountry "GRE"]
[SourceTitle "playchess.com"]
[Source "ChessBase"]
[SourceQuality "1"]
[TimeControl "5400+30"]

1. c4 {[%emt 0:00:10]} e6 {[%emt 0:00:40]} 2. Nc3 {[%emt 0:00:27]} Nf6 {[%emt 0:00:10]} 3. Nf3 {[%emt 0:00:25]} d5 {[%emt 0:00:22]} 4. d4 {[%emt 0:00:55]} g6 {[%emt 0:01:54]} 5. Bg5 {[%emt 0:01:46]} Bg7 {[%emt 0:01:56]} 6. e3 {[%emt 0:01:54]} c6 {[%emt 0:00:40]} 7. Be2 {[%emt 0:01:44]} Qb6 {[%emt 0:02:22]} 8. Qc2 {[%emt 0:00:29]} Nbd7 {[%emt 0:02:29]} 9. O-O {[%emt 0:01:17]} O-O {[%emt 0:01:37]} 10. c5 {[%emt 0:04:46]} Qd8 {[%emt 0:03:27]} 11. b4 {[%emt 0:01:10]} Qe7 {[%emt 0:00:34]} 12. b5 {[%emt 0:03:22]} e5 {[%emt 0:01:00]} 13. bxc6 {[%emt 0:02:52]} bxc6 {[%emt 0:00:23]} 14. Qa4 {[%emt 0:00:17]} Bb7 {[%emt 0:03:54]} 15. Rab1 {[%emt 0:01:26]} Rfb8 {[%emt 0:03:11]} 16. Rb3 {[%emt 0:08:17]} a5 {[%emt 0:06:51]} 17. Rfb1 {[%emt 0:02:46]} Ra7 {[%emt 0:00:17]} 18. Nxd5 {[%emt 0:01:03]} Qe6 {[%emt 0:06:23]} 19. Nxf6+ {[%emt 0:03:36]} Bxf6 {[%emt 0:00:56]} 20. Bc4 {[%emt 0:02:22]} Qe7 {[%emt 0:01:52]} 21. Bxf6 {[%emt 0:02:05]} Qxf6 {[%emt 0:00:08]} 22. Nxe5 {[%emt 0:58:21]} Nxe5 {[%emt 1:00:24]} 23. dxe5 {[%emt 0:00:00]} Qxe5 {[%emt 0:00:00]} 24. Qa3 {[%emt 0:00:00]} Qc7 {[%emt 0:00:00]} 25. Qb2 {[%emt 0:00:00]} Kf8 {[%emt 0:00:00]} 26. h3 {[%emt 0:00:00]} Kg8 {[%emt 0:00:00]} 27. Rb6 {[%emt 0:00:00]} Qe7 {[%emt 0:00:00]} 28. Qd4 {[%emt 0:00:00]} Qg5 {[%emt 0:00:00]} 29. Qd7 {[%emt 0:00:00]} 1-0

[Event "34rd NATO Championship 2024"]
[Site "Rhodes"]
[Date "2024.10.22"]
[Round "3.30"]
[White "Korge, Kersti"]
[Black "Michalski, Daniel"]
[Result "0-1"]
[ECO "A00"]
[WhiteElo "1854"]
[BlackElo "2011"]
[Annotator "RC"]
[PlyCount "68"]
[EventDate "2024.09.18"]
[EventType "swiss"]
[EventCountry "GRE"]
[SourceTitle "playchess.com"]
[Source "ChessBase"]
[SourceQuality "1"]
[TimeControl "5400+30"]

1. b4 {[%emt 0:00:01]} e5 {[%emt 0:00:24]} 2. Bb2 {[%emt 0:00:06]} f6 {[%emt 0:00:06]} 3. a3 {[%emt 0:00:29]} d5 {[%emt 0:00:14]} 4. e3 {[%emt 0:00:15]} Be6 {[%emt 0:01:15]} 5. Nf3 {[%emt 0:01:25]} Bd6 {[%emt 0:01:59]} 6. d4 {[%emt 0:00:57]} e4 {[%emt 0:00:26]} 7. Nfd2 {[%emt 0:00:08]} Ne7 {[%emt 0:02:36]} 8. c4 {[%emt 0:00:19]} c6 {[%emt 0:00:56]} 9. cxd5 {[%emt 0:03:20]} cxd5 {[%emt 0:00:18]} 10. Nc3 {[%emt 0:00:16]} Nbc6 {[%emt 0:04:19]} 11. Qb3 {[%emt 0:04:25]} Bf7 {[%emt 0:06:38]} 12. Be2 {[%emt 0:05:51]} O-O {[%emt 0:01:38]} 13. Nb5 {[%emt 0:04:43]} Bb8 {[%emt 0:04:54]} 14. O-O {[%emt 0:03:49]} Nf5 {[%emt 0:07:53]} 15. Bg4 {[%emt 0:01:43]} Nd6 {[%emt 0:01:00]} 16. Nxd6 {[%emt 0:03:01]} Qxd6 {[%emt 0:00:06]} 17. g3 {[%emt 0:00:06]} Ne7 {[%emt 0:07:36]} 18. Rac1 {[%emt 0:03:21]} f5 {[%emt 0:00:34]} 19. Be2 {[%emt 0:01:38]} Qg6 {[%emt 0:01:41]} 20. b5 {[%emt 0:01:24]} f4 {[%emt 0:01:03]} 21. exf4 {[%emt 0:00:40]} Bxf4 {[%emt 0:00:11]} 22. Rc2 {[%emt 0:01:46]} Nf5 {[%emt 0:07:12]} 23. Kh1 {[%emt 0:01:34]} Bd6 {[%emt 0:02:11]} 24. f4 {[%emt 0:04:38]} exf3 {[%emt 0:22:57]} 25. Rxf3 {[%emt 0:05:00]} Nxg3+ {[%emt 0:04:31]} 26. Rxg3 {[%emt 0:00:13]} Bxg3 {[%emt 0:00:12]} 27. hxg3 {[%emt 0:00:07]} Qh6+ {[%emt 0:06:52]} 28. Kg2 {[%emt 0:00:55]} Rae8 {[%emt 0:00:18]} 29. Nf1 {[%emt 0:00:29]} Be6 {[%emt 0:00:32]} 30. g4 {[%emt 0:00:38]} Qg6 {[%emt 0:03:30]} 31. Ne3 {[%emt 0:05:11]} Qe4+ {[%emt 0:03:51]} 32. Kg1 {[%emt 0:00:22]} Rf6 {[%emt 0:01:36]} 33. Bd3 {[%emt 0:02:45]} Qxe3+ {[%emt 0:00:08]} 34. Kg2 {[%emt 0:00:29]} Rf3 {[%emt 0:07:53]} 0-1

[Event "34rd NATO Championship 2024"]
[Site "Rhodes"]
[Date "2024.10.22"]
[Round "3.31"]
[White "Cheung, Jan"]
[Black "Allmann, Lauri"]
[Result "1-0"]
[ECO "E10"]
[WhiteElo "2010"]
[BlackElo "1852"]
[Annotator "RC"]
[PlyCount "101"]
[EventDate "2024.09.18"]
[EventType "swiss"]
[EventCountry "GRE"]
[SourceTitle "playchess.com"]
[Source "ChessBase"]
[SourceQuality "1"]
[TimeControl "5400+30"]

1. d4 {[%emt 0:00:03]} Nf6 {[%emt 0:00:05]} 2. c4 {[%emt 0:00:05]} Nc6 {[%emt 0:00:32]} 3. Nf3 {[%emt 0:04:46]} e6 {[%emt 0:02:39]} 4. g3 {[%emt 0:02:57]} Bb4+ {[%emt 0:02:05]} 5. Bd2 {[%emt 0:00:25]} O-O {[%emt 0:02:06]} 6. Bg2 {[%emt 0:02:50]} Rb8 {[%emt 0:01:43]} 7. O-O {[%emt 0:00:56]} d5 {[%emt 0:01:48]} 8. cxd5 {[%emt 0:08:46]} Nxd5 {[%emt 0:04:18]} 9. Nc3 {[%emt 0:02:13]} Nxc3 {[%emt 0:02:56]} 10. bxc3 {[%emt 0:00:27]} Be7 {[%emt 0:01:58]} 11. e4 {[%emt 0:01:04]} b6 {[%emt 0:01:20]} 12. Qe2 {[%emt 0:01:29]} a5 {[%emt 0:02:18]} 13. Rfd1 {[%emt 0:00:59]} Bb7 {[%emt 0:06:29]} 14. h4 {[%emt 0:07:34]} Re8 {[%emt 0:06:25]} 15. Bf4 {[%emt 0:07:10]} Bd6 {[%emt 0:04:46]} 16. e5 {[%emt 0:00:32]} Bf8 {[%emt 0:01:01]} 17. Ng5 {[%emt 0:02:46]} Qe7 {[%emt 0:11:26]} 18. Ne4 {[%emt 0:12:25]} h6 {[%emt 0:05:48]} 19. h5 {[%emt 0:04:53]} Nd8 {[%emt 0:02:47]} 20. Bf3 {[%emt 0:06:31]} f5 {[%emt 0:03:34]} 21. exf6 {[%emt 0:00:41]} gxf6 {[%emt 0:00:12]} 22. Kg2 {[%emt 0:04:12]} f5 {[%emt 0:02:39]} 23. Nd2 {[%emt 0:01:00]} Kh7 {[%emt 0:03:03]} 24. Re1 {[%emt 0:01:38]} Bg7 {[%emt 0:02:45]} 25. Qd3 {[%emt 0:01:06]} Qf7 {[%emt 0:06:32]} 26. Re2 {[%emt 0:03:26]} Qxh5 {[%emt 0:02:23]} 27. Bxc7 {[%emt 0:04:41]} Nf7 {[%emt 0:05:28]} 28. d5 {[%emt 0:04:44]} Bxd5 {[%emt 0:02:28]} 29. Qxd5 {[%emt 0:00:48]} exd5 {[%emt 0:04:00]} 30. Bxh5 {[%emt 0:00:08]} Rxe2 {[%emt 0:00:30]} 31. Bxe2 {[%emt 0:01:30]} Rb7 {[%emt 0:00:48]} 32. Bf4 {[%emt 0:00:12]} Bxc3 {[%emt 0:00:54]} 33. Rc1 {[%emt 0:00:36]} d4 {[%emt 0:01:12]} 34. Bd3 {[%emt 0:01:04]} b5 {[%emt 0:01:39]} 35. Bxf5+ {[%emt 0:00:09]} Kg7 {[%emt 0:00:06]} 36. Kf1 {[%emt 0:07:33]} Kf6 {[%emt 0:00:57]} 37. Bc2 {[%emt 0:00:52]} Ke7 {[%emt 0:04:11]} 38. Ne4 {[%emt 0:00:31]} Bb2 {[%emt 0:00:30]} 39. Rb1 {[%emt 0:00:17]} Bc3 {[%emt 0:00:37]} 40. Ke2 {[%emt 0:00:52]} b4 {[%emt 0:00:28]} 41. Kd3 {[%emt 0:00:58]} Rb6 {[%emt 0:00:44]} 42. Rh1 {[%emt 0:00:27]} Rc6 {[%emt 0:00:18]} 43. Bb3 {[%emt 0:00:34]} Nd8 {[%emt 0:02:57]} 44. Rxh6 {[%emt 0:00:36]} Rxh6 {[%emt 0:00:13]} 45. Bxh6 {[%emt 0:00:07]} Nc6 {[%emt 0:00:26]} 46. Bf4 {[%emt 0:00:58]} Kf8 {[%emt 0:00:47]} 47. Ba4 {[%emt 0:01:55]} Nd8 {[%emt 0:00:29]} 48. Be5 {[%emt 0:02:00]} Nf7 {[%emt 0:00:32]} 49. Bxd4 {[%emt 0:00:18]} Be1 {[%emt 0:00:33]} 50. f4 {[%emt 0:00:21]} Nh6 {[%emt 0:00:32]} 51. Ke2 {[%emt 0:00:45]} 1-0

[Event "34rd NATO Championship 2024"]
[Site "Rhodes"]
[Date "2024.10.22"]
[Round "3.32"]
[White "Pirs, Matjaz"]
[Black "Voroblievas, Arturas"]
[Result "1-0"]
[ECO "D00"]
[WhiteElo "2203"]
[BlackElo "1819"]
[Annotator "RC"]
[PlyCount "103"]
[EventDate "2024.09.18"]
[EventType "swiss"]
[EventCountry "GRE"]
[SourceTitle "playchess.com"]
[Source "ChessBase"]
[SourceQuality "1"]
[TimeControl "5400+30"]

1. d4 {[%emt 0:00:03]} d5 {[%emt 0:00:10]} 2. Bf4 {[%emt 0:00:35]} Nf6 {[%emt 0:00:15]} 3. e3 {[%emt 0:01:33]} c5 {[%emt 0:00:20]} 4. c3 {[%emt 0:02:25]} Nc6 {[%emt 0:03:47]} 5. Nd2 {[%emt 0:01:05]} Qb6 {[%emt 0:02:17]} 6. Qb3 {[%emt 0:03:58]} c4 {[%emt 0:03:19]} 7. Qc2 {[%emt 0:00:40]} g6 {[%emt 0:00:46]} 8. Ngf3 {[%emt 0:03:30]} Bf5 {[%emt 0:01:55]} 9. Qc1 {[%emt 0:00:21]} Bg7 {[%emt 0:01:52]} 10. Be2 {[%emt 0:01:24]} O-O {[%emt 0:00:26]} 11. h3 {[%emt 0:02:57]} h5 {[%emt 0:06:10]} 12. Ne5 {[%emt 0:03:43]} Rad8 {[%emt 0:07:01]} 13. f3 {[%emt 0:09:02]} Nxe5 {[%emt 0:23:24]} 14. Bxe5 {[%emt 0:03:01]} h4 {[%emt 0:06:19]} 15. O-O {[%emt 0:12:55]} Nh5 {[%emt 0:02:52]} 16. Bxg7 {[%emt 0:00:19]} Ng3 {[%emt 0:00:46]} 17. Rf2 {[%emt 0:03:37]} Kxg7 {[%emt 0:01:07]} 18. e4 {[%emt 0:08:59]} Be6 {[%emt 0:06:41]} 19. exd5 {[%emt 0:39:53]} Bxd5 {[%emt 0:03:20]} 20. Bxc4 {[%emt 0:00:00]} Qc6 {[%emt 0:01:51]} 21. Bxd5 {[%emt 0:00:00]} Qxd5 {[%emt 0:00:23]} 22. Qe1 {[%emt 0:00:00]} f6 {[%emt 0:01:21]} 23. Nf1 {[%emt 0:00:00]} Nf5 {[%emt 0:00:45]} 24. Ne3 {[%emt 0:00:00]} Nxe3 {[%emt 0:01:09]} 25. Qxe3 {[%emt 0:00:00]} Rfe8 {[%emt 0:01:59]} 26. a3 {[%emt 0:00:00]} e5 {[%emt 0:00:09]} 27. dxe5 {[%emt 0:00:00]} Rxe5 {[%emt 0:00:56]} 28. Qxa7 {[%emt 0:00:00]} Rd7 {[%emt 0:01:08]} 29. Qa4 {[%emt 0:00:00]} g5 {[%emt 0:00:29]} 30. Raf1 {[%emt 0:00:00]} b5 {[%emt 0:00:23]} 31. Qc2 {[%emt 0:00:00]} Qc5 {[%emt 0:00:45]} 32. Kh1 {[%emt 0:00:00]} Rde7 {[%emt 0:01:17]} 33. Qd2 {[%emt 0:00:00]} Rd5 {[%emt 0:00:36]} 34. Qc1 {[%emt 0:00:00]} Rde5 {[%emt 0:01:51]} 35. Qc2 {[%emt 0:00:00]} Qc4 {[%emt 0:02:05]} 36. b3 {[%emt 0:00:00]} Qc5 {[%emt 0:00:41]} 37. Qb2 {[%emt 0:02:27]} Re3 {[%emt 0:01:55]} 38. a4 {[%emt 0:03:12]} bxa4 {[%emt 0:00:59]} 39. bxa4 {[%emt 0:00:07]} Rxc3 {[%emt 0:00:29]} 40. Ra1 {[%emt 0:02:24]} Rce3 {[%emt 0:01:26]} 41. Qd2 {[%emt 0:00:22]} Qe5 {[%emt 0:01:04]} 42. Raf1 {[%emt 0:01:04]} Ra3 {[%emt 0:04:52]} 43. f4 {[%emt 0:00:13]} Qe4 {[%emt 0:00:47]} 44. fxg5 {[%emt 0:00:25]} Rxh3+ {[%emt 0:00:08]} 45. Kg1 {[%emt 0:00:05]} Re5 {[%emt 0:04:52]} 46. gxh3 {[%emt 0:00:48]} Rxg5+ {[%emt 0:00:06]} 47. Rg2 {[%emt 0:00:07]} Rg3 {[%emt 0:02:06]} 48. Rxg3+ {[%emt 0:00:30]} hxg3 {[%emt 0:00:15]} 49. Qf4 {[%emt 0:00:22]} Qg6 {[%emt 0:00:51]} 50. Qxf6+ {[%emt 0:00:06]} Qxf6 {[%emt 0:00:07]} 51. Rxf6 {[%emt 0:00:04]} Kxf6 {[%emt 0:00:08]} 52. a5 {[%emt 0:00:06]} 1-0